[Event "Late-Titled-Tuesday-Blitz-March-19-2024"]
[Site "Chess.com"]
[Date "2024.03.19"]
[Round "10"]
[White "OverallStranger"]
[Black "Navyblue1"]
[Result "0-1"]
[WhiteElo "2360"]
[BlackElo "2228"]
[TimeControl "180+1"]
[EndTime "15:54:29 PDT"]
[Termination "Navyblue1 won by resignation"]

1. Nf3 {[%clk 0:02:55]} 1... c5 {[%clk 0:02:57.7]} 2. g3 {[%clk 0:02:52.9]} 2...
g6 {[%clk 0:02:53.8]} 3. Bg2 {[%clk 0:02:50.3]} 3... Bg7 {[%clk 0:02:54]} 4. O-O
{[%clk 0:02:46.1]} 4... Nc6 {[%clk 0:02:53.5]} 5. c4 {[%clk 0:02:37]} 5... Nf6
{[%clk 0:02:53.3]} 6. d4 {[%clk 0:02:34.6]} 6... cxd4 {[%clk 0:02:51.9]} 7. Nxd4
{[%clk 0:02:35.2]} 7... O-O {[%clk 0:02:51]} 8. Nc3 {[%clk 0:02:16.1]} 8... Nxd4
{[%clk 0:02:43.8]} 9. Qxd4 {[%clk 0:02:13.4]} 9... d6 {[%clk 0:02:43.5]} 10. b3
{[%clk 0:02:06.7]} 10... Nd7 {[%clk 0:02:38.5]} 11. Qd2 {[%clk 0:02:05.3]} 11...
a5 {[%clk 0:02:33.8]} 12. Bb2 {[%clk 0:02:05.1]} 12... Nc5 {[%clk 0:02:34]} 13.
Nd5 {[%clk 0:02:00.3]} 13... Bxb2 {[%clk 0:02:31.1]} 14. Qxb2 {[%clk 0:02:01.2]}
14... Be6 {[%clk 0:02:29.1]} 15. a4 {[%clk 0:01:52]} 15... Bxd5 {[%clk
0:02:26.3]} 16. Bxd5 {[%clk 0:01:50.4]} 16... Qb6 {[%clk 0:02:11.1]} 17. Rab1
{[%clk 0:01:45]} 17... Rad8 {[%clk 0:02:09.7]} 18. e3 {[%clk 0:01:41.1]} 18...
Qb4 {[%clk 0:01:59.6]} 19. Rfd1 {[%clk 0:01:36.8]} 19... Rd7 {[%clk 0:01:54.1]}
20. Qd2 {[%clk 0:01:32.8]} 20... Qxd2 {[%clk 0:01:52.4]} 21. Rxd2 {[%clk
0:01:33.7]} 21... Kg7 {[%clk 0:01:44.7]} 22. b4 {[%clk 0:01:32.9]} 22... axb4
{[%clk 0:01:44.4]} 23. Rxb4 {[%clk 0:01:33.8]} 23... Ra8 {[%clk 0:01:43.6]} 24.
Rdb2 {[%clk 0:01:25.6]} 24... Ra7 {[%clk 0:01:37.5]} 25. Kg2 {[%clk 0:01:13.9]}
25... Rc7 {[%clk 0:01:14.7]} 26. h4 {[%clk 0:01:06.8]} 26... e6 {[%clk
0:01:13.9]} 27. Bf3 {[%clk 0:01:03.6]} 27... Rxa4 {[%clk 0:01:09.8]} 28. Rxa4
{[%clk 0:01:03.3]} 28... Nxa4 {[%clk 0:01:09.6]} 29. Rxb7 {[%clk 0:01:02.6]}
29... Rxc4 {[%clk 0:01:03.1]} 30. Be2 {[%clk 0:00:49.4]} 30... Rc8 {[%clk
0:00:46]} 31. Bb5 {[%clk 0:00:46.5]} 31... Nc5 {[%clk 0:00:43.6]} 32. Ra7 {[%clk
0:00:46.2]} 32... Rb8 {[%clk 0:00:38.6]} 33. Bd7 {[%clk 0:00:44.7]} 33... Nxd7
{[%clk 0:00:37.8]} 34. Rxd7 {[%clk 0:00:45.4]} 34... d5 {[%clk 0:00:38.1]} 35.
Kf3 {[%clk 0:00:44.9]} 35... h5 {[%clk 0:00:38.3]} 36. Ke2 {[%clk 0:00:44.5]}
36... Rb2+ {[%clk 0:00:38]} 37. Kf3 {[%clk 0:00:45.1]} 37... Kf6 {[%clk
0:00:37.3]} 38. Rc7 {[%clk 0:00:42.8]} 38... e5 {[%clk 0:00:34.9]} 39. Rc6+
{[%clk 0:00:41.1]} 39... Kf5 {[%clk 0:00:35]} 40. Rd6 {[%clk 0:00:38.4]} 40...
Rd2 {[%clk 0:00:33.4]} 41. Rd7 {[%clk 0:00:29.2]} 41... f6 {[%clk 0:00:32.2]}
42. Rd6 {[%clk 0:00:27.6]} 42... e4+ {[%clk 0:00:20.3]} 43. Kg2 {[%clk
0:00:27.6]} 43... Ke5 {[%clk 0:00:20.7]} 44. Rd8 {[%clk 0:00:27.2]} 44... d4
{[%clk 0:00:19.9]} 45. exd4+ {[%clk 0:00:25.9]} 45... Rxd4 {[%clk 0:00:19.7]}
46. Re8+ {[%clk 0:00:26.6]} 46... Kf5 {[%clk 0:00:20.1]} 47. Re7 {[%clk
0:00:26]} 47... Rd2 {[%clk 0:00:20.1]} 48. Re8 {[%clk 0:00:22.1]} 48... g5
{[%clk 0:00:20.2]} 49. hxg5 {[%clk 0:00:21.5]} 49... fxg5 {[%clk 0:00:19.6]} 50.
Rf8+ {[%clk 0:00:21.7]} 50... Kg4 {[%clk 0:00:19.4]} 51. Re8 {[%clk 0:00:21.2]}
51... Rd4 {[%clk 0:00:18.1]} 52. Rxe4+ {[%clk 0:00:12.5]} 52... Rxe4 {[%clk
0:00:18]} 53. f3+ {[%clk 0:00:12.9]} 53... Kf5 {[%clk 0:00:18.7]} 54. fxe4+
{[%clk 0:00:12.6]} 54... Kxe4 {[%clk 0:00:19.6]} 55. Kf2 {[%clk 0:00:12.9]}
55... g4 {[%clk 0:00:18.6]} 56. Ke2 {[%clk 0:00:13.3]} 56... Kd4 {[%clk
0:00:17.3]} 57. Kd2 {[%clk 0:00:13.5]} 57... Kc4 {[%clk 0:00:16.5]} 58. Kc2
{[%clk 0:00:14]} 58... Kb4 {[%clk 0:00:16]} 59. Kb2 {[%clk 0:00:14.6]} 59... h4
{[%clk 0:00:16]} 60. gxh4 {[%clk 0:00:15.1]} 60... g3 {[%clk 0:00:16.5]} 61. h5
{[%clk 0:00:15.6]} 61... g2 {[%clk 0:00:17.1]} 62. h6 {[%clk 0:00:16.5]} 62...
g1=Q {[%clk 0:00:17.5]} 63. h7 {[%clk 0:00:17.4]} 63... Qg7+ {[%clk 0:00:17.6]}
0-1

[Event "Late-Titled-Tuesday-Blitz-March-19-2024"]
[Site "Chess.com"]
[Date "2024.03.19"]
[Round "10"]
[White "Bryanl106"]
[Black "Pingah9"]
[Result "1-0"]
[WhiteElo "2675"]
[BlackElo "2580"]
[TimeControl "180+1"]
[EndTime "15:54:30 PDT"]
[Termination "Bryanl106 won by resignation"]

1. e4 {[%clk 0:03:00.9]} 1... g6 {[%clk 0:02:59.2]} 2. d4 {[%clk 0:03:01.1]}
2... Bg7 {[%clk 0:02:59.5]} 3. Bc4 {[%clk 0:03:01.8]} 3... d6 {[%clk 0:02:58.9]}
4. Nf3 {[%clk 0:03:02.3]} 4... a6 {[%clk 0:02:58.1]} 5. a4 {[%clk 0:02:59.7]}
5... e6 {[%clk 0:02:57.9]} 6. Bb3 {[%clk 0:02:58.5]} 6... b6 {[%clk 0:02:58]} 7.
O-O {[%clk 0:02:57.9]} 7... Ne7 {[%clk 0:02:57.7]} 8. Qe2 {[%clk 0:02:58.3]}
8... Bb7 {[%clk 0:02:57.6]} 9. h3 {[%clk 0:02:55.4]} 9... Nd7 {[%clk 0:02:57.6]}
10. Bf4 {[%clk 0:02:55.5]} 10... h6 {[%clk 0:02:57.1]} 11. Bh2 {[%clk
0:02:54.9]} 11... O-O {[%clk 0:02:56.4]} 12. Nc3 {[%clk 0:02:52.4]} 12... g5
{[%clk 0:02:54.7]} 13. Rad1 {[%clk 0:02:49]} 13... Ng6 {[%clk 0:02:54.3]} 14.
Rfe1 {[%clk 0:02:48]} 14... Qe7 {[%clk 0:02:51.7]} 15. Qe3 {[%clk 0:02:39.5]}
15... Rae8 {[%clk 0:02:48.8]} 16. Bg3 {[%clk 0:02:23.3]} 16... Kh7 {[%clk
0:02:43.8]} 17. Bh2 {[%clk 0:02:13]} 17... Ba8 {[%clk 0:02:11.6]} 18. Bc4 {[%clk
0:02:11.5]} 18... Bb7 {[%clk 0:02:11.5]} 19. Bb3 {[%clk 0:02:10.6]} 19... Ba8
{[%clk 0:02:10.1]} 20. Qd3 {[%clk 0:02:09.3]} 20... Bb7 {[%clk 0:02:09.5]} 21.
Qc4 {[%clk 0:02:07.5]} 21... Nf6 {[%clk 0:02:04.3]} 22. Qe2 {[%clk 0:02:00.8]}
22... Nh5 {[%clk 0:02:00.7]} 23. Qe3 {[%clk 0:01:55]} 23... Nhf4 {[%clk
0:01:59.6]} 24. h4 {[%clk 0:01:51]} 24... e5 {[%clk 0:01:41.4]} 25. hxg5 {[%clk
0:01:46.8]} 25... hxg5 {[%clk 0:01:40.4]} 26. dxe5 {[%clk 0:01:46.4]} 26... dxe5
{[%clk 0:01:39.9]} 27. Nd5 {[%clk 0:01:45.2]} 27... Bxd5 {[%clk 0:01:39.3]} 28.
Bxd5 {[%clk 0:01:42.2]} 28... g4 {[%clk 0:01:35.7]} 29. Nd2 {[%clk 0:01:34.9]}
29... Bh6 {[%clk 0:01:30.8]} 30. Qg3 {[%clk 0:01:29.5]} 30... Nh4 {[%clk
0:01:26.3]} 31. Nc4 {[%clk 0:01:19.5]} 31... Nfxg2 {[%clk 0:01:16.5]} 32. Re2
{[%clk 0:01:13.3]} 32... Bf4 {[%clk 0:01:12.4]} 33. Qxg4 {[%clk 0:01:12.5]}
33... Bxh2+ {[%clk 0:00:48.9]} 34. Kxh2 {[%clk 0:01:13.4]} 34... Qf6 {[%clk
0:00:42.1]} 35. Qh5+ {[%clk 0:01:10.7]} 35... Qh6 {[%clk 0:00:38.2]} 36. Qxh6+
{[%clk 0:01:08.5]} 36... Kxh6 {[%clk 0:00:39.1]} 37. Bc6 {[%clk 0:01:08.3]}
37... Re6 {[%clk 0:00:35.1]} 38. Bd7 {[%clk 0:01:07.6]} 38... Re7 {[%clk
0:00:34.4]} 39. Bf5 {[%clk 0:01:02.5]} 39... Nf4 {[%clk 0:00:33.2]} 40. Re3
{[%clk 0:01:00.9]} 40... Nxf5 {[%clk 0:00:31.6]} 41. exf5 {[%clk 0:01:00.4]}
41... Kg5 {[%clk 0:00:32]} 42. Rxe5 {[%clk 0:00:46.6]} 42... Rh8+ {[%clk
0:00:31.2]} 43. Kg1 {[%clk 0:00:42.9]} 43... Rxe5 {[%clk 0:00:29.4]} 44. Nxe5
{[%clk 0:00:43.8]} 44... Kxf5 {[%clk 0:00:27.3]} 45. Nxf7 {[%clk 0:00:44.1]}
45... Rf8 {[%clk 0:00:22.1]} 46. Nd8 {[%clk 0:00:37.3]} 46... c5 {[%clk
0:00:19.1]} 47. Nb7 {[%clk 0:00:34]} 47... Ne2+ {[%clk 0:00:18.7]} 48. Kf1
{[%clk 0:00:33.4]} 48... Nd4 {[%clk 0:00:19.2]} 49. c3 {[%clk 0:00:33.8]} 49...
Nf3 {[%clk 0:00:19]} 50. a5 {[%clk 0:00:33.8]} 50... b5 {[%clk 0:00:17.3]} 51.
Nxc5 {[%clk 0:00:33.6]} 51... Rh8 {[%clk 0:00:15.5]} 52. Nxa6 {[%clk 0:00:31.8]}
52... Ne5 {[%clk 0:00:13.9]} 53. Nc7 {[%clk 0:00:29.6]} 53... Kf4 {[%clk
0:00:13.9]} 54. Ne6+ {[%clk 0:00:26.8]} 54... Kf3 {[%clk 0:00:13.9]} 55. Nd4+
{[%clk 0:00:27.3]} 55... Ke4 {[%clk 0:00:13.9]} 56. Ke2 {[%clk 0:00:28.2]} 56...
b4 {[%clk 0:00:13.3]} 57. a6 {[%clk 0:00:28.1]} 57... bxc3 {[%clk 0:00:13.1]}
58. bxc3 {[%clk 0:00:29]} 58... Ra8 {[%clk 0:00:11.1]} 59. Ra1 {[%clk
0:00:28.6]} 59... Nc4 {[%clk 0:00:11.8]} 60. a7 {[%clk 0:00:26.9]} 60... Kd5
{[%clk 0:00:11.9]} 61. Ra6 {[%clk 0:00:25.4]} 61... Kc5 {[%clk 0:00:11.5]} 62.
Ne6+ {[%clk 0:00:25.7]} 62... Kb5 {[%clk 0:00:11.5]} 63. Nc7+ {[%clk 0:00:26.3]}
1-0

[Event "Late-Titled-Tuesday-Blitz-March-19-2024"]
[Site "Chess.com"]
[Date "2024.03.19"]
[Round "10"]
[White "schondeln"]
[Black "C_K_G"]
[Result "1-0"]
[WhiteElo "2384"]
[BlackElo "2215"]
[TimeControl "180+1"]
[EndTime "15:54:30 PDT"]
[Termination "schondeln won on time"]

1. e4 {[%clk 0:03:00.9]} 1... c5 {[%clk 0:02:49.5]} 2. Nf3 {[%clk 0:02:58.7]}
2... d6 {[%clk 0:02:49.6]} 3. Bc4 {[%clk 0:02:57.6]} 3... e6 {[%clk 0:02:48.8]}
4. O-O {[%clk 0:02:57]} 4... a6 {[%clk 0:02:48.6]} 5. Re1 {[%clk 0:02:55.2]}
5... Nc6 {[%clk 0:02:48.1]} 6. c3 {[%clk 0:02:54.9]} 6... Nf6 {[%clk 0:02:46.9]}
7. Bf1 {[%clk 0:02:47.6]} 7... Be7 {[%clk 0:02:46.1]} 8. d4 {[%clk 0:02:47.7]}
8... cxd4 {[%clk 0:02:46.3]} 9. cxd4 {[%clk 0:02:48.6]} 9... O-O {[%clk
0:02:45.1]} 10. Nc3 {[%clk 0:02:48]} 10... b5 {[%clk 0:02:44.2]} 11. d5 {[%clk
0:02:47.3]} 11... Ne5 {[%clk 0:02:42.9]} 12. dxe6 {[%clk 0:02:33.5]} 12... Bxe6
{[%clk 0:02:40.1]} 13. Nd4 {[%clk 0:02:32.6]} 13... Bc4 {[%clk 0:02:35.8]} 14.
Nf5 {[%clk 0:02:12.1]} 14... Re8 {[%clk 0:02:26.8]} 15. Bg5 {[%clk 0:01:55.2]}
15... h6 {[%clk 0:02:13.3]} 16. Bxf6 {[%clk 0:01:39.7]} 16... Bxf6 {[%clk
0:02:08]} 17. Nxd6 {[%clk 0:01:36.5]} 17... Bxf1 {[%clk 0:02:00.8]} 18. Nxe8
{[%clk 0:01:21.7]} 18... Bxg2 {[%clk 0:01:35.7]} 19. Nxf6+ {[%clk 0:00:55.1]}
19... Qxf6 {[%clk 0:01:31.7]} 20. Kxg2 {[%clk 0:00:55.4]} 20... Qg5+ {[%clk
0:01:30.9]} 21. Kh1 {[%clk 0:00:49.4]} 21... Rd8 {[%clk 0:01:26.9]} 22. Qe2
{[%clk 0:00:27.7]} 22... Qh4 {[%clk 0:00:59]} 23. Rad1 {[%clk 0:00:14.9]} 23...
Re8 {[%clk 0:00:52.2]} 24. f4 {[%clk 0:00:14.8]} 24... Ng4 {[%clk 0:00:46.9]}
25. Rf1 {[%clk 0:00:10.9]} 25... b4 {[%clk 0:00:40.3]} 26. Nd5 {[%clk
0:00:10.7]} 26... Rxe4 {[%clk 0:00:40.4]} 27. Qg2 {[%clk 0:00:08]} 27... a5
{[%clk 0:00:25.4]} 28. b3 {[%clk 0:00:07.7]} 28... Re6 {[%clk 0:00:19.9]} 29. f5
{[%clk 0:00:07.1]} 29... Re5 {[%clk 0:00:17.2]} 30. f6 {[%clk 0:00:07.4]} 30...
g5 {[%clk 0:00:15.6]} 31. Ne7+ {[%clk 0:00:03.3]} 31... Kh7 {[%clk 0:00:15.3]}
32. Nf5 {[%clk 0:00:03.9]} 32... Qh5 {[%clk 0:00:12.5]} 33. Ng3 {[%clk
0:00:04.4]} 33... Qh4 {[%clk 0:00:12.4]} 34. Rfe1 {[%clk 0:00:04.6]} 34... Rxe1+
{[%clk 0:00:10.9]} 35. Rxe1 {[%clk 0:00:04.4]} 35... Nxf6 {[%clk 0:00:10.9]} 36.
Rf1 {[%clk 0:00:03.8]} 36... Kg7 {[%clk 0:00:11.1]} 37. Qf2 {[%clk 0:00:03.2]}
37... Ng4 {[%clk 0:00:04.9]} 38. Nf5+ {[%clk 0:00:02.8]} 38... Kg8 {[%clk
0:00:02.9]} 39. Nxh4 {[%clk 0:00:03.7]} 39... Nxf2+ {[%clk 0:00:02.8]} 40. Rxf2
{[%clk 0:00:03.5]} 40... Kg7 {[%clk 0:00:03.7]} 41. Rf5 {[%clk 0:00:03.6]} 41...
gxh4 {[%clk 0:00:03.6]} 42. Rxa5 {[%clk 0:00:04.5]} 42... Kg6 {[%clk 0:00:03.8]}
43. Ra4 {[%clk 0:00:05.4]} 43... f5 {[%clk 0:00:04.7]} 44. Rxb4 {[%clk
0:00:06.3]} 44... Kg5 {[%clk 0:00:05.4]} 45. Rc4 {[%clk 0:00:07.2]} 45... h5
{[%clk 0:00:05.3]} 46. Kg1 {[%clk 0:00:07.9]} 46... f4 {[%clk 0:00:06.2]} 47. h3
{[%clk 0:00:08.7]} 1-0

[Event "Late-Titled-Tuesday-Blitz-March-19-2024"]
[Site "Chess.com"]
[Date "2024.03.19"]
[Round "10"]
[White "azikom"]
[Black "MightyMike_009"]
[Result "1/2-1/2"]
[WhiteElo "2599"]
[BlackElo "2747"]
[TimeControl "180+1"]
[EndTime "15:54:31 PDT"]
[Termination "Game drawn by repetition"]

1. d4 {[%clk 0:03:00.6]} 1... Nf6 {[%clk 0:02:59.3]} 2. c4 {[%clk 0:02:58.3]}
2... e6 {[%clk 0:02:59]} 3. Nc3 {[%clk 0:02:57.9]} 3... d5 {[%clk 0:02:58.5]} 4.
Nf3 {[%clk 0:02:57.1]} 4... c6 {[%clk 0:02:57.9]} 5. e3 {[%clk 0:02:56.4]} 5...
Be7 {[%clk 0:02:57]} 6. b3 {[%clk 0:02:56.3]} 6... O-O {[%clk 0:02:54.3]} 7. Bb2
{[%clk 0:02:56.7]} 7... Re8 {[%clk 0:02:46.4]} 8. Qc2 {[%clk 0:02:56.3]} 8...
dxc4 {[%clk 0:02:46.6]} 9. Bxc4 {[%clk 0:02:54.3]} 9... b5 {[%clk 0:02:46.4]}
10. Bd3 {[%clk 0:02:53.4]} 10... Na6 {[%clk 0:02:46.7]} 11. a3 {[%clk
0:02:51.9]} 11... b4 {[%clk 0:02:47.1]} 12. Ne4 {[%clk 0:02:45.2]} 12... Nxe4
{[%clk 0:02:37.6]} 13. Bxe4 {[%clk 0:02:45.1]} 13... bxa3 {[%clk 0:02:38]} 14.
Bxh7+ {[%clk 0:02:08]} 14... Kh8 {[%clk 0:02:25.7]} 15. Bc3 {[%clk 0:02:06.8]}
15... Nb4 {[%clk 0:02:22.4]} 16. Bxb4 {[%clk 0:02:06.2]} 16... Bxb4+ {[%clk
0:02:23.3]} 17. Kf1 {[%clk 0:02:00.7]} 17... Ba6+ {[%clk 0:01:51.4]} 18. Bd3
{[%clk 0:01:58.8]} 18... Bxd3+ {[%clk 0:01:51.6]} 19. Qxd3 {[%clk 0:01:59.2]}
19... c5 {[%clk 0:01:47.6]} 20. h4 {[%clk 0:01:58.9]} 20... cxd4 {[%clk
0:01:41.5]} 21. Ng5 {[%clk 0:01:53.9]} 21... Kg8 {[%clk 0:01:41.2]} 22. Qh7+
{[%clk 0:01:45.1]} 22... Kf8 {[%clk 0:01:40.6]} 23. Qh8+ {[%clk 0:01:45.7]}
23... Ke7 {[%clk 0:01:39.6]} 24. Qxg7 {[%clk 0:01:46.6]} 24... Rf8 {[%clk
0:01:35.5]} 25. exd4 {[%clk 0:01:43.6]} 25... Qd5 {[%clk 0:01:30.2]} 26. Rh3
{[%clk 0:01:38.3]} 26... Bd2 {[%clk 0:00:59.8]} 27. Rxa3 {[%clk 0:01:30.9]}
27... Qf5 {[%clk 0:00:35.2]} 28. Ra1 {[%clk 0:01:21]} 28... Rg8 {[%clk
0:00:34.9]} 29. Qe5 {[%clk 0:01:17.9]} 29... Qxe5 {[%clk 0:00:29.6]} 30. dxe5
{[%clk 0:01:17.9]} 30... Bxg5 {[%clk 0:00:30.5]} 31. hxg5 {[%clk 0:01:18.1]}
31... Rxg5 {[%clk 0:00:31.4]} 32. Ra5 {[%clk 0:01:16]} 32... Rgg8 {[%clk
0:00:30]} 33. Rc3 {[%clk 0:01:11]} 33... Rgd8 {[%clk 0:00:28.5]} 34. g4 {[%clk
0:00:47.4]} 34... Rd7 {[%clk 0:00:26.7]} 35. Kg2 {[%clk 0:00:47]} 35... Rg8
{[%clk 0:00:26.5]} 36. Kg3 {[%clk 0:00:45.6]} 36... Rb8 {[%clk 0:00:27.2]} 37.
f4 {[%clk 0:00:32.5]} 37... Rb4 {[%clk 0:00:27.3]} 38. Ra4 {[%clk 0:00:31.3]}
38... Rb5 {[%clk 0:00:27.2]} 39. g5 {[%clk 0:00:24.5]} 39... Rdb7 {[%clk
0:00:23.1]} 40. Kg4 {[%clk 0:00:24.4]} 40... Kf8 {[%clk 0:00:22.5]} 41. Ra6
{[%clk 0:00:20.9]} 41... Kg7 {[%clk 0:00:21.7]} 42. Rd3 {[%clk 0:00:19.8]} 42...
Kg6 {[%clk 0:00:17]} 43. f5+ {[%clk 0:00:18.2]} 43... Kg7 {[%clk 0:00:16]} 44.
fxe6 {[%clk 0:00:18.5]} 44... Rxe5 {[%clk 0:00:15]} 45. exf7 {[%clk 0:00:17.6]}
45... Kxf7 {[%clk 0:00:15]} 46. Rf6+ {[%clk 0:00:17.2]} 46... Kg7 {[%clk
0:00:15.3]} 47. Rf5 {[%clk 0:00:17]} 47... Rb4+ {[%clk 0:00:14.9]} 48. Rf4
{[%clk 0:00:17.2]} 48... Rbb5 {[%clk 0:00:15.3]} 49. Rd7+ {[%clk 0:00:17.1]}
49... Kg8 {[%clk 0:00:15.9]} 50. Rd8+ {[%clk 0:00:17.1]} 50... Kg7 {[%clk
0:00:16.1]} 51. Rd7+ {[%clk 0:00:16.6]} 51... Kg8 {[%clk 0:00:16.4]} 52. Rd8+
{[%clk 0:00:16.6]} 52... Kg7 {[%clk 0:00:16.4]} 53. Rd7+ {[%clk 0:00:13.6]}
1/2-1/2

[Event "Late-Titled-Tuesday-Blitz-March-19-2024"]
[Site "Chess.com"]
[Date "2024.03.19"]
[Round "10"]
[White "MathiasWomacka"]
[Black "Heliosis11"]
[Result "0-1"]
[WhiteElo "2481"]
[BlackElo "2291"]
[TimeControl "180+1"]
[EndTime "15:54:33 PDT"]
[Termination "Heliosis11 won by resignation"]

1. e4 {[%clk 0:03:00.9]} 1... c5 {[%clk 0:02:59.7]} 2. Nf3 {[%clk 0:02:59.3]}
2... e6 {[%clk 0:02:58]} 3. d4 {[%clk 0:02:59.4]} 3... cxd4 {[%clk 0:02:58.3]}
4. Nxd4 {[%clk 0:02:59.7]} 4... Nc6 {[%clk 0:02:58.7]} 5. Nc3 {[%clk 0:02:59.6]}
5... Qc7 {[%clk 0:02:58.8]} 6. Be2 {[%clk 0:02:56.9]} 6... a6 {[%clk 0:02:58.9]}
7. O-O {[%clk 0:02:56.2]} 7... Nf6 {[%clk 0:02:59.4]} 8. Be3 {[%clk 0:02:53.4]}
8... Bb4 {[%clk 0:02:59.8]} 9. Na4 {[%clk 0:02:50.5]} 9... Be7 {[%clk
0:02:59.3]} 10. Nxc6 {[%clk 0:02:46]} 10... bxc6 {[%clk 0:03:00.2]} 11. Nb6
{[%clk 0:02:45.6]} 11... Rb8 {[%clk 0:03:00.7]} 12. Nxc8 {[%clk 0:02:45.9]}
12... Qxc8 {[%clk 0:03:01.6]} 13. Bd4 {[%clk 0:02:44.3]} 13... c5 {[%clk
0:02:57.7]} 14. Be5 {[%clk 0:02:43.2]} 14... Rb6 {[%clk 0:02:57.3]} 15. Qd3
{[%clk 0:02:31]} 15... d6 {[%clk 0:02:53.6]} 16. Bc3 {[%clk 0:02:30.7]} 16...
O-O {[%clk 0:02:53]} 17. b3 {[%clk 0:02:27.6]} 17... Qc6 {[%clk 0:02:49.3]} 18.
e5 {[%clk 0:02:05.3]} 18... Nd5 {[%clk 0:02:28.2]} 19. Bf3 {[%clk 0:02:04.4]}
19... dxe5 {[%clk 0:01:31.7]} 20. Ba5 {[%clk 0:01:50.3]} 20... Rb5 {[%clk
0:01:16.2]} 21. Bd2 {[%clk 0:01:49.1]} 21... Qc8 {[%clk 0:01:10.1]} 22. Rad1
{[%clk 0:01:25.8]} 22... Nf6 {[%clk 0:01:05.9]} 23. Bc3 {[%clk 0:01:14.5]} 23...
Qc7 {[%clk 0:00:38.8]} 24. Qe2 {[%clk 0:01:08]} 24... e4 {[%clk 0:00:33.6]} 25.
Bxe4 {[%clk 0:01:07.2]} 25... Nxe4 {[%clk 0:00:34]} 26. Qxe4 {[%clk 0:01:07.7]}
26... c4 {[%clk 0:00:26]} 27. bxc4 {[%clk 0:00:58.8]} 27... Rc5 {[%clk
0:00:25.4]} 28. Qg4 {[%clk 0:00:41.9]} 28... g6 {[%clk 0:00:22.5]} 29. Qd4
{[%clk 0:00:38]} 29... e5 {[%clk 0:00:19.6]} 30. Qe3 {[%clk 0:00:36.8]} 30...
Bf6 {[%clk 0:00:18.3]} 31. Rd5 {[%clk 0:00:34.9]} 31... Rxc4 {[%clk 0:00:18.7]}
32. Bxe5 {[%clk 0:00:34.4]} 32... Bxe5 {[%clk 0:00:19.2]} 33. Rxe5 {[%clk
0:00:33.9]} 33... Rxc2 {[%clk 0:00:18.7]} 34. Re7 {[%clk 0:00:33.4]} 34... Qa5
{[%clk 0:00:17.5]} 35. a3 {[%clk 0:00:30.8]} 35... Rc3 {[%clk 0:00:17.3]} 36.
Qd4 {[%clk 0:00:29.9]} 36... Qxa3 {[%clk 0:00:17.3]} 37. Rd7 {[%clk 0:00:26.9]}
37... Rc1 {[%clk 0:00:16.8]} 38. h4 {[%clk 0:00:23.9]} 38... Rxf1+ {[%clk
0:00:16.6]} 39. Kxf1 {[%clk 0:00:22.9]} 39... Qa5 {[%clk 0:00:17.2]} 40. g3
{[%clk 0:00:22]} 40... Qb5+ {[%clk 0:00:17.3]} 41. Kg1 {[%clk 0:00:22]} 41... a5
{[%clk 0:00:17.7]} 42. Ra7 {[%clk 0:00:20.4]} 42... Rc8 {[%clk 0:00:14.2]} 43.
Qf4 {[%clk 0:00:18.8]} 43... Rf8 {[%clk 0:00:12.5]} 44. Qc7 {[%clk 0:00:18.2]}
44... a4 {[%clk 0:00:12.4]} 45. Qc3 {[%clk 0:00:17.6]} 45... Rb8 {[%clk
0:00:09.8]} 46. Qf3 {[%clk 0:00:17.3]} 46... Rf8 {[%clk 0:00:09]} 47. Qc3 {[%clk
0:00:16.7]} 47... Qb1+ {[%clk 0:00:09.1]} 48. Kh2 {[%clk 0:00:15.7]} 48... Qe4
{[%clk 0:00:09.7]} 49. Qa3 {[%clk 0:00:14]} 49... Qe2 {[%clk 0:00:08.3]} 50. Kg2
{[%clk 0:00:13.3]} 50... Qe4+ {[%clk 0:00:06]} 51. Kh2 {[%clk 0:00:13.4]} 51...
Qd4 {[%clk 0:00:05]} 52. Kg2 {[%clk 0:00:12.7]} 52... Qxa7 {[%clk 0:00:05]} 53.
Qd3 {[%clk 0:00:09.7]} 53... a3 {[%clk 0:00:04.9]} 0-1